[Event "*** SCC Grand Prix: Titled Tuesday Blitz"]
[Site "Chess.com"]
[Date "2020.06.02"]
[Round "1"]
[White "Dmitry_M1"]
[Black "tigra"]
[Result "1-0"]
[WhiteElo "2389"]
[BlackElo "2714"]
[TimeControl "180+1"]
[EndTime "10:07:59 PDT"]
[Termination "Dmitry_M1 won by resignation"]

1. d4 {[%clk 0:03:00.5]} 1... Nf6 {[%clk 0:02:59]} 2. c4 {[%clk 0:03:00.6]} 2...
g6 {[%clk 0:02:55.1]} 3. Nc3 {[%clk 0:03:00.3]} 3... d5 {[%clk 0:02:54.7]} 4.
Nf3 {[%clk 0:02:59.2]} 4... Bg7 {[%clk 0:02:54.3]} 5. Bg5 {[%clk 0:02:59.5]}
5... Ne4 {[%clk 0:02:54.3]} 6. cxd5 {[%clk 0:02:59.5]} 6... Nxg5 {[%clk
0:02:21.2]} 7. Nxg5 {[%clk 0:02:59.3]} 7... e6 {[%clk 0:02:22.1]} 8. Nf3 {[%clk
0:02:59.5]} 8... exd5 {[%clk 0:02:22]} 9. e3 {[%clk 0:03:00]} 9... O-O {[%clk
0:02:15.1]} 10. b4 {[%clk 0:02:58.4]} 10... c6 {[%clk 0:02:14]} 11. Bd3 {[%clk
0:02:54.6]} 11... Bg4 {[%clk 0:02:06.9]} 12. O-O {[%clk 0:02:53.4]} 12... Nd7
{[%clk 0:02:06.2]} 13. h3 {[%clk 0:02:49.5]} 13... Bxf3 {[%clk 0:02:06.1]} 14.
Qxf3 {[%clk 0:02:49.2]} 14... b5 {[%clk 0:02:05.3]} 15. a4 {[%clk 0:02:30.6]}
15... a6 {[%clk 0:02:05]} 16. a5 {[%clk 0:02:30.1]} 16... f5 {[%clk 0:01:58.6]}
17. Qf4 {[%clk 0:01:59]} 17... Qe7 {[%clk 0:01:53]} 18. Rab1 {[%clk 0:01:56.5]}
18... Nf6 {[%clk 0:01:49.1]} 19. Rfd1 {[%clk 0:01:43.7]} 19... Ne4 {[%clk
0:01:39.1]} 20. Bxe4 {[%clk 0:01:30.1]} 20... fxe4 {[%clk 0:01:38.3]} 21. Qg4
{[%clk 0:01:11.4]} 21... Rf6 {[%clk 0:01:24.5]} 22. Rd2 {[%clk 0:00:56.9]} 22...
Bf8 {[%clk 0:01:23.7]} 23. Ne2 {[%clk 0:00:49]} 23... Qf7 {[%clk 0:01:21.1]} 24.
Nf4 {[%clk 0:00:43.3]} 24... Bd6 {[%clk 0:01:19.6]} 25. g3 {[%clk 0:00:35.7]}
25... Rf8 {[%clk 0:01:16.7]} 26. h4 {[%clk 0:00:34.9]} 26... Qe7 {[%clk
0:01:13.2]} 27. Rdb2 {[%clk 0:00:30.6]} 27... Kh8 {[%clk 0:01:11.5]} 28. Qg5
{[%clk 0:00:27]} 28... R8f7 {[%clk 0:01:10.3]} 29. Qg4 {[%clk 0:00:15.8]} 29...
Qe8 {[%clk 0:01:00.5]} 30. Kg2 {[%clk 0:00:16]} 30... Rf5 {[%clk 0:00:55.5]} 31.
Rh1 {[%clk 0:00:15.4]} 31... Qf8 {[%clk 0:00:42.2]} 32. Rc2 {[%clk 0:00:11.9]}
32... Bxf4 {[%clk 0:00:32.6]} 33. gxf4 {[%clk 0:00:11.5]} 33... Qxb4 {[%clk
0:00:22.9]} 34. Rxc6 {[%clk 0:00:11]} 34... Qxa5 {[%clk 0:00:21.5]} 35. h5
{[%clk 0:00:10.3]} 35... g5 {[%clk 0:00:15]} 36. Rc8+ {[%clk 0:00:09.3]} 36...
Kg7 {[%clk 0:00:15.3]} 37. h6+ {[%clk 0:00:09.5]} 37... Kf6 {[%clk 0:00:15.4]}
38. Rh5 {[%clk 0:00:09.7]} 38... Ke7 {[%clk 0:00:11.9]} 39. Rxg5 {[%clk
0:00:09.2]} 39... Rxg5 {[%clk 0:00:07.1]} 40. Qxg5+ {[%clk 0:00:09.2]} 40... Kd7
{[%clk 0:00:07.4]} 41. Rc5 {[%clk 0:00:09.6]} 41... Qb6 {[%clk 0:00:04.8]} 42.
Qxd5+ {[%clk 0:00:09.7]} 42... Ke7 {[%clk 0:00:05.1]} 43. Qe5+ {[%clk 0:00:09]}
43... Kd7 {[%clk 0:00:04.4]} 44. Rd5+ {[%clk 0:00:08.9]} 44... Kc6 {[%clk
0:00:02.8]} 45. Rd6+ {[%clk 0:00:09]} 45... Kb7 {[%clk 0:00:02.6]} 46. Rxb6+
{[%clk 0:00:09.9]} 46... Kxb6 {[%clk 0:00:03.5]} 47. Qe6+ {[%clk 0:00:10.4]} 1-0

[Event "*** SCC Grand Prix: Titled Tuesday Blitz"]
[Site "Chess.com"]
[Date "2020.06.02"]
[Round "1"]
[White "ChessQueen"]
[Black "doctorcristian"]
[Result "1-0"]
[WhiteElo "2620"]
[BlackElo "2283"]
[TimeControl "180+1"]
[EndTime "10:08:00 PDT"]
[Termination "ChessQueen won by resignation"]

1. e4 {[%clk 0:03:00]} 1... c5 {[%clk 0:03:00.1]} 2. c3 {[%clk 0:02:56.5]} 2...
g6 {[%clk 0:02:59.1]} 3. d4 {[%clk 0:02:55.7]} 3... cxd4 {[%clk 0:02:59.2]} 4.
cxd4 {[%clk 0:02:55.7]} 4... d5 {[%clk 0:02:59.8]} 5. e5 {[%clk 0:02:53]} 5...
Nc6 {[%clk 0:02:59.4]} 6. Bb5 {[%clk 0:02:47.1]} 6... Bg7 {[%clk 0:02:57]} 7.
Nd2 {[%clk 0:02:40.9]} 7... Nh6 {[%clk 0:02:55.4]} 8. Ngf3 {[%clk 0:02:39.5]}
8... O-O {[%clk 0:02:54.8]} 9. Bxc6 {[%clk 0:02:38.7]} 9... bxc6 {[%clk
0:02:54.7]} 10. Nb3 {[%clk 0:02:38.8]} 10... f6 {[%clk 0:02:47.3]} 11. O-O
{[%clk 0:02:37.6]} 11... Nf7 {[%clk 0:02:46.6]} 12. exf6 {[%clk 0:02:31]} 12...
Bxf6 {[%clk 0:02:28.9]} 13. h3 {[%clk 0:02:26.3]} 13... a5 {[%clk 0:02:27.4]}
14. Re1 {[%clk 0:02:25]} 14... Re8 {[%clk 0:02:07.3]} 15. Bf4 {[%clk 0:02:21.7]}
15... Qb6 {[%clk 0:02:02]} 16. Qd2 {[%clk 0:02:19]} 16... a4 {[%clk 0:01:53.2]}
17. Nc5 {[%clk 0:02:17.8]} 17... Qa5 {[%clk 0:01:25.1]} 18. Qe2 {[%clk 0:01:50]}
18... Qb5 {[%clk 0:01:19.8]} 19. Qc2 {[%clk 0:01:45.2]} 19... Bf5 {[%clk
0:01:17.5]} 20. Qc3 {[%clk 0:01:45.6]} 20... Qa5 {[%clk 0:01:15.7]} 21. Rac1
{[%clk 0:01:45.7]} 21... Qxc3 {[%clk 0:01:15.1]} 22. Rxc3 {[%clk 0:01:45.6]}
22... Reb8 {[%clk 0:01:14.9]} 23. Bxb8 {[%clk 0:01:44.8]} 23... Rxb8 {[%clk
0:01:15.2]} 24. Nxa4 {[%clk 0:01:44.7]} 24... Nd6 {[%clk 0:01:07.4]} 25. Rxc6
{[%clk 0:01:41.8]} 25... Ne4 {[%clk 0:01:04.4]} 26. b3 {[%clk 0:01:38.1]} 26...
Bd7 {[%clk 0:01:04.1]} 27. Rb6 {[%clk 0:01:38]} 27... Rc8 {[%clk 0:01:04.1]} 28.
Nc5 {[%clk 0:01:27.4]} 28... Nxc5 {[%clk 0:01:03.7]} 29. dxc5 {[%clk 0:01:27.6]}
29... Rxc5 {[%clk 0:01:04.1]} 30. Rd1 {[%clk 0:01:26.1]} 30... Bf5 {[%clk
0:00:57.9]} 31. a4 {[%clk 0:01:20.7]} 31... Be4 {[%clk 0:00:56.5]} 32. b4 {[%clk
0:01:17.8]} 32... Rc2 {[%clk 0:00:55.7]} 33. a5 {[%clk 0:01:17.1]} 33... Ra2
{[%clk 0:00:53.2]} 34. a6 {[%clk 0:01:17.2]} 34... Kf7 {[%clk 0:00:49.9]} 35. b5
{[%clk 0:01:16.5]} 35... g5 {[%clk 0:00:45.2]} 36. Rb7 {[%clk 0:01:15.3]} 36...
h5 {[%clk 0:00:38.8]} 37. a7 {[%clk 0:01:02.3]} 37... d4 {[%clk 0:00:35.6]} 38.
Rc7 {[%clk 0:00:56.1]} 38... d3 {[%clk 0:00:35.6]} 39. b6 {[%clk 0:00:52.8]}
39... g4 {[%clk 0:00:34]} 40. hxg4 {[%clk 0:00:51.7]} 40... hxg4 {[%clk
0:00:34.3]} 41. Nd2 {[%clk 0:00:51.8]} 41... Bd5 {[%clk 0:00:29.7]} 42. b7
{[%clk 0:00:49.7]} 42... Bxb7 {[%clk 0:00:26]} 43. Rxb7 {[%clk 0:00:49.9]} 43...
Bd4 {[%clk 0:00:26.4]} 44. Ne4 {[%clk 0:00:45.1]} 44... g3 {[%clk 0:00:26.5]}
45. Nxg3 {[%clk 0:00:42.7]} 45... Bxf2+ {[%clk 0:00:26.4]} 46. Kh2 {[%clk
0:00:42.8]} 46... Bxa7 {[%clk 0:00:26.4]} 47. Rxd3 {[%clk 0:00:42.5]} 47... Bc5
{[%clk 0:00:25.9]} 48. Rf3+ {[%clk 0:00:42.2]} 48... Kg6 {[%clk 0:00:24.9]} 49.
Ne4 {[%clk 0:00:42.3]} 49... Bd4 {[%clk 0:00:25.1]} 50. Rb5 {[%clk 0:00:40.7]}
50... e5 {[%clk 0:00:24.3]} 51. Rd5 {[%clk 0:00:40.3]} 51... Ra6 {[%clk
0:00:23.4]} 52. Rd6+ {[%clk 0:00:39.4]} 52... Rxd6 {[%clk 0:00:23.5]} 53. Nxd6
{[%clk 0:00:40.3]} 53... Kg5 {[%clk 0:00:23.4]} 54. Ne4+ {[%clk 0:00:41.2]}
54... Kg4 {[%clk 0:00:22.8]} 55. Rf1 {[%clk 0:00:38.5]} 55... Be3 {[%clk
0:00:22.2]} 56. g3 {[%clk 0:00:38.7]} 56... Bd4 {[%clk 0:00:21.2]} 57. Kg2
{[%clk 0:00:38.8]} 57... Be3 {[%clk 0:00:21.4]} 58. Rf8 {[%clk 0:00:38.7]} 58...
Bd4 {[%clk 0:00:22.1]} 59. Rg8+ {[%clk 0:00:38.2]} 59... Kf5 {[%clk 0:00:22.3]}
60. Kf3 {[%clk 0:00:39.1]} 60... Ke6 {[%clk 0:00:22.4]} 61. g4 {[%clk
0:00:39.6]} 61... Kf7 {[%clk 0:00:22.8]} 62. Rg5 {[%clk 0:00:39.8]} 62... Ke6
{[%clk 0:00:22.7]} 63. Rf5 {[%clk 0:00:40.7]} 63... Bb2 {[%clk 0:00:21.2]} 64.
Rf6+ {[%clk 0:00:39.4]} 64... Ke7 {[%clk 0:00:21.6]} 65. g5 {[%clk 0:00:40.3]}
65... Bc1 {[%clk 0:00:21.3]} 66. g6 {[%clk 0:00:40.3]} 66... Bh6 {[%clk
0:00:19.9]} 67. Rf7+ {[%clk 0:00:40.4]} 67... Ke6 {[%clk 0:00:20.2]} 68. Kg4
{[%clk 0:00:40.3]} 68... Kd5 {[%clk 0:00:17.7]} 69. Kf5 {[%clk 0:00:39.3]} 1-0

[Event "*** SCC Grand Prix: Titled Tuesday Blitz"]
[Site "Chess.com"]
[Date "2020.06.02"]
[Round "1"]
[White "evgchess5"]
[Black "adriangschnitzer"]
[Result "0-1"]
[WhiteElo "2844"]
[BlackElo "2439"]
[TimeControl "180+1"]
[EndTime "10:08:01 PDT"]
[Termination "adriangschnitzer won by resignation"]

1. e4 {[%clk 0:02:59.7]} 1... c5 {[%clk 0:02:59.4]} 2. Nf3 {[%clk 0:02:59.4]}
2... Nc6 {[%clk 0:02:59.6]} 3. d4 {[%clk 0:02:58.5]} 3... cxd4 {[%clk
0:03:00.5]} 4. Nxd4 {[%clk 0:02:58.4]} 4... g6 {[%clk 0:03:01.1]} 5. c4 {[%clk
0:02:58.2]} 5... Bg7 {[%clk 0:03:01.4]} 6. Be3 {[%clk 0:02:58.7]} 6... Nf6
{[%clk 0:03:01.9]} 7. Nc3 {[%clk 0:02:58.9]} 7... O-O {[%clk 0:03:01.9]} 8. f3
{[%clk 0:02:57.8]} 8... d6 {[%clk 0:03:01.2]} 9. Qd2 {[%clk 0:02:52.9]} 9... Bd7
{[%clk 0:02:56.9]} 10. Rc1 {[%clk 0:02:51]} 10... Nxd4 {[%clk 0:02:51.5]} 11.
Bxd4 {[%clk 0:02:50.6]} 11... a5 {[%clk 0:02:51.7]} 12. b3 {[%clk 0:02:49.4]}
12... Bc6 {[%clk 0:02:50.3]} 13. Be2 {[%clk 0:02:48.2]} 13... Nd7 {[%clk
0:02:45.5]} 14. Be3 {[%clk 0:02:47.8]} 14... Nc5 {[%clk 0:02:44.6]} 15. O-O
{[%clk 0:02:43.2]} 15... e6 {[%clk 0:02:43.2]} 16. Rfd1 {[%clk 0:02:16.1]} 16...
Be5 {[%clk 0:02:39.9]} 17. Bd4 {[%clk 0:02:15.6]} 17... Qe7 {[%clk 0:02:22.2]}
18. Bxe5 {[%clk 0:02:03.1]} 18... dxe5 {[%clk 0:02:23.1]} 19. Qd6 {[%clk
0:02:02.9]} 19... Qxd6 {[%clk 0:02:19.8]} 20. Rxd6 {[%clk 0:02:02.1]} 20... Rfd8
{[%clk 0:02:19.6]} 21. Rcd1 {[%clk 0:01:51.9]} 21... Rxd6 {[%clk 0:02:19.4]} 22.
Rxd6 {[%clk 0:01:49.7]} 22... Kf8 {[%clk 0:02:20.3]} 23. Kf2 {[%clk 0:01:46.9]}
23... Ke7 {[%clk 0:02:16.7]} 24. Rd1 {[%clk 0:01:43.2]} 24... g5 {[%clk
0:02:15.5]} 25. Ke3 {[%clk 0:01:42.1]} 25... Rd8 {[%clk 0:02:01.4]} 26. Rxd8
{[%clk 0:01:39.2]} 26... Kxd8 {[%clk 0:02:02.3]} 27. Bd1 {[%clk 0:01:37.6]}
27... f5 {[%clk 0:01:51.8]} 28. a3 {[%clk 0:01:36.7]} 28... f4+ {[%clk
0:01:51.2]} 29. Kd2 {[%clk 0:01:35.9]} 29... Nd7 {[%clk 0:01:37.3]} 30. b4
{[%clk 0:01:33.7]} 30... axb4 {[%clk 0:01:31]} 31. axb4 {[%clk 0:01:32.9]} 31...
b6 {[%clk 0:01:28.1]} 32. Bc2 {[%clk 0:01:27.3]} 32... Ke7 {[%clk 0:01:22.8]}
33. Nd1 {[%clk 0:01:17.9]} 33... Kd6 {[%clk 0:01:22.8]} 34. Nf2 {[%clk
0:01:16.7]} 34... Nf6 {[%clk 0:01:13.8]} 35. Kc3 {[%clk 0:01:15.1]} 35... h5
{[%clk 0:01:10.5]} 36. Nd3 {[%clk 0:01:14.2]} 36... Nd7 {[%clk 0:00:49.2]} 37.
Bd1 {[%clk 0:01:12.5]} 37... g4 {[%clk 0:00:46.1]} 38. Be2 {[%clk 0:01:05.3]}
38... Bb7 {[%clk 0:00:42.3]} 39. Bd1 {[%clk 0:00:59.9]} 39... g3 {[%clk
0:00:42]} 40. h3 {[%clk 0:00:58.4]} 40... h4 {[%clk 0:00:40.6]} 41. Be2 {[%clk
0:00:34]} 41... Bc6 {[%clk 0:00:38.8]} 42. Bd1 {[%clk 0:00:33.7]} 42... Bb7
{[%clk 0:00:38.9]} 43. Ba4 {[%clk 0:00:24.9]} 43... Bxe4 {[%clk 0:00:34.5]} 44.
Bxd7 {[%clk 0:00:23.1]} 44... Bxd3 {[%clk 0:00:29.7]} 45. Kxd3 {[%clk
0:00:19.7]} 45... Kxd7 {[%clk 0:00:27]} 46. Ke4 {[%clk 0:00:19.3]} 46... Kd6
{[%clk 0:00:25.2]} 47. c5+ {[%clk 0:00:19.3]} 47... bxc5 {[%clk 0:00:24]} 48.
bxc5+ {[%clk 0:00:19.7]} 48... Kxc5 {[%clk 0:00:24.4]} 49. Kxe5 {[%clk 0:00:20]}
49... Kc4 {[%clk 0:00:23.8]} 50. Kxf4 {[%clk 0:00:14.8]} 50... Kd3 {[%clk
0:00:23.6]} 51. Kg4 {[%clk 0:00:09.6]} 51... Ke3 {[%clk 0:00:22.5]} 52. Kxh4
{[%clk 0:00:09]} 52... Kf2 {[%clk 0:00:22.9]} 53. Kg5 {[%clk 0:00:08.8]} 53...
Kxg2 {[%clk 0:00:23.3]} 54. h4 {[%clk 0:00:09.2]} 54... Kxf3 {[%clk 0:00:23.3]}
0-1

[Event "*** SCC Grand Prix: Titled Tuesday Blitz"]
[Site "Chess.com"]
[Date "2020.06.02"]
[Round "1"]
[White "gmcorrales"]
[Black "medalja"]
[Result "0-1"]
[WhiteElo "2756"]
[BlackElo "2409"]
[TimeControl "180+1"]
[EndTime "10:08:03 PDT"]
[Termination "medalja won by checkmate"]

1. e4 {[%clk 0:02:57.8]} 1... c6 {[%clk 0:02:59.1]} 2. d4 {[%clk 0:02:57.4]}
2... d5 {[%clk 0:02:59]} 3. e5 {[%clk 0:02:58]} 3... c5 {[%clk 0:02:58.8]} 4.
dxc5 {[%clk 0:02:57.7]} 4... Nc6 {[%clk 0:02:58.6]} 5. Nf3 {[%clk 0:02:42]} 5...
e6 {[%clk 0:02:56.1]} 6. a3 {[%clk 0:02:41.2]} 6... Bxc5 {[%clk 0:02:55.1]} 7.
Bd3 {[%clk 0:02:40.9]} 7... Nge7 {[%clk 0:02:48.4]} 8. O-O {[%clk 0:02:40.7]}
8... Ng6 {[%clk 0:02:48.6]} 9. b4 {[%clk 0:02:37.9]} 9... Bb6 {[%clk 0:02:48.1]}
10. Bb2 {[%clk 0:02:36.1]} 10... O-O {[%clk 0:02:48.2]} 11. c4 {[%clk
0:02:35.9]} 11... dxc4 {[%clk 0:02:20.4]} 12. Bxc4 {[%clk 0:02:36.8]} 12... Qc7
{[%clk 0:02:20.8]} 13. Qe2 {[%clk 0:02:08.2]} 13... Bd7 {[%clk 0:02:12.9]} 14.
Nbd2 {[%clk 0:02:07.8]} 14... Rac8 {[%clk 0:02:10.3]} 15. Rac1 {[%clk
0:02:07.3]} 15... Qb8 {[%clk 0:02:05.5]} 16. Qe4 {[%clk 0:00:37.6]} 16... Nce7
{[%clk 0:02:02.9]} 17. h4 {[%clk 0:00:36.2]} 17... Bc6 {[%clk 0:01:19.5]} 18.
Qg4 {[%clk 0:00:36.2]} 18... Nf5 {[%clk 0:01:19.7]} 19. h5 {[%clk 0:00:36.5]}
19... Nh6 {[%clk 0:01:19.9]} 20. Qg5 {[%clk 0:00:31.6]} 20... Bd8 {[%clk
0:01:19.6]} 21. Qg3 {[%clk 0:00:30.2]} 21... Ne7 {[%clk 0:01:16.2]} 22. Qf4
{[%clk 0:00:21.6]} 22... Bd5 {[%clk 0:01:08.3]} 23. Bd3 {[%clk 0:00:21.3]} 23...
Nc6 {[%clk 0:00:39]} 24. Ne4 {[%clk 0:00:20.2]} 24... f6 {[%clk 0:00:30.1]} 25.
exf6 {[%clk 0:00:18.5]} 25... Qxf4 {[%clk 0:00:28.9]} 26. fxg7 {[%clk
0:00:16.1]} 26... Rf7 {[%clk 0:00:29]} 27. Nfd2 {[%clk 0:00:14.4]} 27... Bb6
{[%clk 0:00:26.2]} 28. g3 {[%clk 0:00:12.6]} 28... Qg4 {[%clk 0:00:21.8]} 29.
Kg2 {[%clk 0:00:10.5]} 29... Qxh5 {[%clk 0:00:19.4]} 30. f3 {[%clk 0:00:09.5]}
30... Bxe4 {[%clk 0:00:17.2]} 31. Nxe4 {[%clk 0:00:10.4]} 31... Nf5 {[%clk
0:00:15.8]} 32. Rh1 {[%clk 0:00:08.4]} 32... Qg6 {[%clk 0:00:16]} 33. f4 {[%clk
0:00:04.1]} 33... Bd4 {[%clk 0:00:15.5]} 34. Bxd4 {[%clk 0:00:03.6]} 34... Nfxd4
{[%clk 0:00:16]} 35. Rh5 {[%clk 0:00:03]} 35... Nf5 {[%clk 0:00:15.1]} 36. Rg5
{[%clk 0:00:03.4]} 36... Ne3+ {[%clk 0:00:12.2]} 37. Kf3 {[%clk 0:00:03.1]}
37... Nd4+ {[%clk 0:00:05.7]} 38. Kxe3 {[%clk 0:00:03.1]} 38... Rxc1 {[%clk
0:00:06]} 39. Rxg6 {[%clk 0:00:03.4]} 39... hxg6 {[%clk 0:00:05.4]} 40. Kxd4
{[%clk 0:00:04.3]} 40... Ra1 {[%clk 0:00:04.4]} 41. Ke5 {[%clk 0:00:04.7]} 41...
Kxg7 {[%clk 0:00:04.6]} 42. Bc4 {[%clk 0:00:05]} 42... Rxa3 {[%clk 0:00:04.6]}
43. Bxe6 {[%clk 0:00:05.9]} 43... Re7 {[%clk 0:00:04.9]} 44. Kd6 {[%clk
0:00:06.1]} 44... Rxe6+ {[%clk 0:00:04.8]} 45. Kxe6 {[%clk 0:00:07]} 45... Rb3
{[%clk 0:00:05.6]} 46. Kd5 {[%clk 0:00:07.9]} 46... Rxb4 {[%clk 0:00:05.7]} 47.
Nc5 {[%clk 0:00:08.6]} 47... a5 {[%clk 0:00:06.6]} 48. Ne6+ {[%clk 0:00:07.1]}
48... Kf7 {[%clk 0:00:07.5]} 49. Ng5+ {[%clk 0:00:07.2]} 49... Kf6 {[%clk
0:00:07.8]} 50. Nf3 {[%clk 0:00:08.1]} 50... a4 {[%clk 0:00:07.7]} 51. Ne5
{[%clk 0:00:08.5]} 51... a3 {[%clk 0:00:06.8]} 52. Nd7+ {[%clk 0:00:09.4]} 52...
Ke7 {[%clk 0:00:06.9]} 53. Nc5 {[%clk 0:00:08.6]} 53... a2 {[%clk 0:00:05.9]}
54. Nd3 {[%clk 0:00:09.5]} 54... Rb1 {[%clk 0:00:05.2]} 55. Ne5 {[%clk
0:00:09.7]} 55... a1=Q {[%clk 0:00:06.1]} 56. Nxg6+ {[%clk 0:00:09.7]} 56... Kf6
{[%clk 0:00:06.8]} 57. Ne5 {[%clk 0:00:10.6]} 57... Qa2+ {[%clk 0:00:07.2]} 58.
Kd4 {[%clk 0:00:10.8]} 58... Rd1+ {[%clk 0:00:07.5]} 59. Ke4 {[%clk 0:00:11.7]}
59... Qe2# {[%clk 0:00:07.1]} 0-1

[Event "*** SCC Grand Prix: Titled Tuesday Blitz"]
[Site "Chess.com"]
[Date "2020.06.02"]
[Round "1"]
[White "Chuchofrio1"]
[Black "Ziachess74"]
[Result "0-1"]
[WhiteElo "2256"]
[BlackElo "2597"]
[TimeControl "180+1"]
[EndTime "10:08:03 PDT"]
[Termination "Ziachess74 won on time"]

1. d4 {[%clk 0:02:54]} 1... d6 {[%clk 0:02:58.1]} 2. Nf3 {[%clk 0:02:50.6]} 2...
g6 {[%clk 0:02:53.7]} 3. c4 {[%clk 0:02:50.2]} 3... Bg7 {[%clk 0:02:53.9]} 4.
Nc3 {[%clk 0:02:50.2]} 4... Nf6 {[%clk 0:02:50.7]} 5. e4 {[%clk 0:02:49]} 5...
Bg4 {[%clk 0:02:50.4]} 6. Be3 {[%clk 0:02:44.8]} 6... O-O {[%clk 0:02:47.8]} 7.
Be2 {[%clk 0:02:43.8]} 7... Nfd7 {[%clk 0:02:47.6]} 8. Ng1 {[%clk 0:02:42.5]}
8... Bxe2 {[%clk 0:02:46.4]} 9. Ngxe2 {[%clk 0:02:42.3]} 9... Nc6 {[%clk
0:02:39.8]} 10. O-O {[%clk 0:02:40.7]} 10... Na5 {[%clk 0:02:34.9]} 11. b3
{[%clk 0:02:35.7]} 11... c5 {[%clk 0:02:33]} 12. Rc1 {[%clk 0:02:32.8]} 12... a6
{[%clk 0:02:17.1]} 13. dxc5 {[%clk 0:02:26.8]} 13... dxc5 {[%clk 0:02:16.5]} 14.
Qd2 {[%clk 0:02:22.1]} 14... b6 {[%clk 0:01:13.8]} 15. Rfd1 {[%clk 0:02:04.7]}
15... Nf6 {[%clk 0:01:13]} 16. Qc2 {[%clk 0:01:50.2]} 16... Qc7 {[%clk
0:01:07.7]} 17. Bf4 {[%clk 0:01:44.2]} 17... Qb7 {[%clk 0:01:04.4]} 18. Nd5
{[%clk 0:01:19.8]} 18... Nxd5 {[%clk 0:00:55.6]} 19. cxd5 {[%clk 0:01:11.8]}
19... Rfd8 {[%clk 0:00:49.3]} 20. Bd2 {[%clk 0:01:08.4]} 20... Rac8 {[%clk
0:00:43.3]} 21. Bxa5 {[%clk 0:01:07.8]} 21... bxa5 {[%clk 0:00:44.2]} 22. Qc4
{[%clk 0:01:03.1]} 22... Be5 {[%clk 0:00:40.5]} 23. Rc2 {[%clk 0:00:58.2]} 23...
Bd6 {[%clk 0:00:34.9]} 24. f4 {[%clk 0:00:52.7]} 24... f6 {[%clk 0:00:30.7]} 25.
Rcd2 {[%clk 0:00:46.2]} 25... Qb5 {[%clk 0:00:27.7]} 26. Rc2 {[%clk 0:00:31.9]}
26... Rb8 {[%clk 0:00:26.7]} 27. g3 {[%clk 0:00:28.9]} 27... Kg7 {[%clk
0:00:19.7]} 28. Kg2 {[%clk 0:00:24.3]} 28... Rb6 {[%clk 0:00:18.4]} 29. h4
{[%clk 0:00:21.3]} 29... Qd7 {[%clk 0:00:18.1]} 30. Nc3 {[%clk 0:00:09.9]} 30...
h5 {[%clk 0:00:12.3]} 31. Na4 {[%clk 0:00:09.6]} 31... Rb4 {[%clk 0:00:11]} 32.
Qe2 {[%clk 0:00:08.5]} 32... Qb5 {[%clk 0:00:07.7]} 33. Nb2 {[%clk 0:00:07.9]}
33... Qxe2+ {[%clk 0:00:06.7]} 34. Rxe2 {[%clk 0:00:07.9]} 34... Bb8 {[%clk
0:00:06.3]} 35. e5 {[%clk 0:00:07.2]} 35... fxe5 {[%clk 0:00:05.4]} 36. fxe5
{[%clk 0:00:07.2]} 36... Rd4 {[%clk 0:00:05.6]} 37. Red2 {[%clk 0:00:02.2]}
37... R8xd5 {[%clk 0:00:05.2]} 38. Rxd4 {[%clk 0:00:02.2]} 38... cxd4 {[%clk
0:00:05.8]} 39. Nd3 {[%clk 0:00:02]} 39... Kf7 {[%clk 0:00:05.3]} 40. Rf1+
{[%clk 0:00:01.8]} 40... Ke8 {[%clk 0:00:05.3]} 41. Rc1 {[%clk 0:00:02.1]} 41...
Bxe5 {[%clk 0:00:05.2]} 42. Rc8+ {[%clk 0:00:02.4]} 42... Kd7 {[%clk 0:00:05]}
43. Ra8 {[%clk 0:00:02]} 43... Bd6 {[%clk 0:00:05.9]} 44. Ra7+ {[%clk 0:00:02]}
44... Ke6 {[%clk 0:00:05.4]} 45. Rxa6 {[%clk 0:00:02]} 45... Rf5 {[%clk
0:00:06.3]} 0-1